Cogmind - Beta 14 @@@ ROGUE MODE // 2025.03.19 @ 22:50:36 Player: kat Result: Self-destructed Performance ------------- Evolutions (2) 1000 Regions Visited (5) 1000 Robots Destroyed (17) 85 Value Destroyed (400) 400 Prototype IDs (27) 540 Alien Tech Used (0) 0 Bonus (300) 300 TOTAL SCORE: 3325 Bonus ------- Aligned with FarCom 300 Cogmind --------- Core Integrity 516/550 Matter 114/300 Energy 265/265 System Corruption 0% Temperature Cool (0) Movement Walking (190) Ox1 Location -8/Materials Parts ------- > --- POWER (1) -------- Reinforced Ion Engine > --- PROPULSION (2) --- Aluminum Leg Carbon-fiber Leg > --- UTILITY (6) ------ Small Storage Unit Signal Interpreter Improved Targeting Computer Improved Targeting Computer Sensor Drone Bay (20/20) > --- WEAPON (2) ------- Improved Medium Laser Grenade Launcher > --- INVENTORY (8) ---- Ion Engine Improved Heat Sink Propulsion Shielding Medium Laser Improved Medium Laser Field Lobotomy Kit (5) Peak State ------------ > --- POWER ------------ Reinforced Ion Engine > --- PROPULSION ------- Aluminum Leg Aluminum Leg > --- UTILITY ---------- Small Storage Unit Signal Interpreter Improved Targeting Computer Sensor Drone Bay > --- WEAPON ----------- Grenade Launcher Field Lobotomy Kit > --- INVENTORY -------- Ion Engine Improved Heat Sink Improved Targeting Computer Propulsion Shielding Medium Laser Improved Light Cannon [Rating: 28] Favorites ----------- Power Reinforced Ion Engine Engine Reinforced Ion Engine Propulsion Aluminum Leg Leg Aluminum Leg Utility Small Storage Unit Device Sensor Drone Bay Storage Small Storage Unit Processor Signal Interpreter Protection Propulsion Shielding Weapon Grenade Launcher Energy Gun Improved Medium Laser Ballistic Gun Light Assault Rifle Ballistic Cannon Improved Light Cannon Launcher Grenade Launcher Special Weapon Field Lobotomy Kit Build | -11 -10 -10 -10 -9 -8 ------- Run | Yrd Mat Min Exi Min Mat Slots Evolved 4 | . . . . . 4 Power . | . . . . . . Propulsion . | . . . . . . Utility 4 | . . . . . 4 Weapon . | . . . . . . Parts Attached 21 | 6 6 1 . . 8 Power 2 | 1 1 . . . . Engine 2 | 1 1 . . . . Core . | . . . . . . Reactor . | . . . . . . Propulsion 5 | 2 1 1 . . 1 Treads . | . . . . . . Leg 5 | 2 1 1 . . 1 Wheel . | . . . . . . Hover . | . . . . . . Flight . | . . . . . . Utility 6 | 1 2 . . . 3 Device 1 | . . . . . 1 Storage 1 | 1 . . . . . Processor 3 | . 1 . . . 2 Hackware . | . . . . . . Protection 1 | . 1 . . . . Artifact . | . . . . . . Weapon 8 | 2 2 . . . 4 Energy Gun 3 | 1 . . . . 2 Energy Cannon . | . . . . . . Ballistic Gun 1 | 1 . . . . . Ballistic Cannon 2 | . 1 . . . 1 Launcher 1 | . 1 . . . . Special Weapon 1 | . . . . . 1 Impact Weapon . | . . . . . . Slashing Weapon . | . . . . . . Piercing Weapon . | . . . . . . Special Melee Weapon . | . . . . . . Unidentified Prototypes 2 | . . . . . 2 Parts Lost . | . . . . . . Power . | . . . . . . Propulsion . | . . . . . . Utility . | . . . . . . Weapon . | . . . . . . Highest Loss Streak . | . . . . . . To Critical Strikes . | . . . . . . Average Slot Usage (%) 97 | . 96 100 100 100 83 Engine 13 | . 14 14 14 14 9 Leg 27 | . 28 28 28 28 17 Storage 13 | . 14 14 14 14 9 Processor 13 | . 9 14 14 14 20 Ballistic Cannon 11 | . 7 14 14 14 1 Launcher 13 | . 12 14 14 14 9 Peak Build Rating 28 | 6 10 10 11 11 28 Average Rating 10 | 3 8 9 10 11 23 On Entrance 8 | . 6 10 10 11 11 Naked Turns . | . . . . . . Heaviest Build 40 | 12 22 22 22 22 40 Greatest Support 25 | 20 20 20 20 20 25 Greatest Overweight (x) 3 | . 1 1 1 1 3 Average Overweight (x) . | . . 1 1 1 1 Largest Inventory Capacity 8 | 8 8 8 8 8 8 Average Capacity 7 | 7 8 8 8 8 8 Most Carried 8 | 4 8 8 8 8 8 Average Carried 7 | 2 6 7 8 8 6 Final Capacity 8 | 8 8 8 8 8 8 Final Carried 8 | 2 8 8 8 8 6 Class Distribution -------------------- 100% | Mutant Dominant Class ---------------- Mutant | -10/Materials Mutant | -10/Mines Mutant | -10/Exiles Mutant | -9/Mines Mutant | -8/Materials Resources | -11 -10 -10 -10 -9 -8 ----------- Run | Yrd Mat Min Exi Min Mat Matter Collected 460 | 218 117 114 . . 11 Remotely . | . . . . . . Salvage Created 369 | . 155 95 . . 119 Parts 34 | . 19 9 . . 6 Haulers Intercepted 2 | . . . . . 2 Recyclers Shooed 1 | . 1 . . . . Parts Field Recycled . | . . . . . . Retrieved Matter . | . . . . . . Parts Self-Destructed . | . . . . . . Prevented . | . . . . . . Kills | -11 -10 -10 -10 -9 -8 ------- Run | Yrd Mat Min Exi Min Mat Combat Hostiles Destroyed 12 | . 8 2 . . 2 Cannons 5 | . 4 . . . 1 AOE 7 | . 4 2 . . 1 Classes Destroyed 7 | . 3 1 . . 3 Builder 1 | . . 1 . . . Hauler 2 | . . . . . 2 Operator 1 | . . . . . 1 Watcher 1 | . 1 . . . . Swarmer 4 | . 4 . . . . Grunt 7 | . 4 2 . . 1 Hunter 1 | . . . . . 1 Best Kill Streak 3 | . 3 2 . . 2 Combat Bots Only 3 | . 3 1 . . 2 Max Kills in Single Turn 2 | . 2 1 . . 1 Gunslinging . | . . . . . . Exploded 2 | . 2 1 . . 1 Melee . | . . . . . . Uniques/NPCs Destroyed . | . . . . . . Combat | -11 -10 -10 -10 -9 -8 -------- Run | Yrd Mat Min Exi Min Mat Hostile Shots Fired 43 | . 17 10 . . 16 Missed 14 | . 5 2 . . 7 Damage Taken 327 | . 110 83 . . 134 Core 55 | . . 21 . . 34 Absorbed by Shields . | . . . . . . Redirected to Shielding 8 | . 8 . . . . Core Remaining (%) 95 | 100 . . . 91 . Volleys Fired 51 | . 21 14 . . 16 Largest 2 | . 1 1 . . 2 Hottest 69 | . 39 39 . . 69 Shots Fired 52 | . 21 14 . . 17 Gun 8 | . 5 . . . 3 Cannon 33 | . 12 12 . . 9 Launcher 11 | . 4 2 . . 5 Special . | . . . . . . Kinetic 38 | . 17 12 . . 9 Thermal 3 | . . . . . 3 Explosive 11 | . 4 2 . . 5 Electromagnetic . | . . . . . . Robot Hit Streak 8 | . 4 8 . . 8 Robot Miss Streak 3 | . 2 3 . . 1 Penetration Max . | . . . . . . Secondary Targets . | . . . . . . Shots Hit Robots 32 | . 13 8 . . 11 Core Hits 26 | . 15 4 . . 7 Critical Kills . | . . . . . . Critical Parts Destroyed . | . . . . . . Critical Strikes 2 | . . 2 . . . Blast 2 | . . 2 . . . Melee Attacks . | . . . . . . Impact . | . . . . . . Slashing . | . . . . . . Piercing . | . . . . . . Sneak Attacks . | . . . . . . Combat Hostiles . | . . . . . . Follow-up Attacks . | . . . . . . Damage Inflicted 1258 | . 506 278 . 3 471 Guns 59 | . 27 . . . 32 Cannons 468 | . 161 157 . . 150 Explosions 721 | . 318 114 . . 289 Melee . | . . . . . . Ramming 10 | . . 7 . 3 . Kinetic 495 | . 188 157 . . 150 Thermal 32 | . . . . . 32 Explosive 721 | . 318 114 . . 289 Electromagnetic . | . . . . . . Impact . | . . . . . . Slashing . | . . . . . . Piercing . | . . . . . . Highest Corruption . | . . . . . . Average Corruption . | . . . . . . Corruption Purged . | . . . . . . Corruption Blocked . | . . . . . . Overload Shots . | . . . . . . Overflow Damage 20 | . 7 9 . . 4 Projectiles . | . . . . . . Explosions 20 | . 7 9 . . 4 Melee . | . . . . . . Knockbacks 4 | . 1 1 . . 2 Impact . | . . . . . . Kinetic 4 | . 1 1 . . 2 Secondary . | . . . . . . Self-Inflicted Damage . | . . . . . . Shots . | . . . . . . Rammed . | . . . . . . Targets Rammed 3 | . . 1 . 2 . Kicked 3 | . . 1 . 2 . Crushed . | . . . . . . Highest Temperature 46 | . 24 46 . . 24 Average Temperature 14 | . 9 23 . . 6 Received Heat Transfer 141 | . 30 48 . . 63 Siege Activations . | . . . . . . Robots Corrupted . | . . . . . . Combat Hostiles . | . . . . . . Parts Fried . | . . . . . . Impact Corruptions . | . . . . . . Robots Melted . | . . . . . . Combat Hostiles . | . . . . . . Parts Melted . | . . . . . . Heat Transferred 74 | . . . . . 74 Parts Sabotaged . | . . . . . . Parts Stolen . | . . . . . . Parts Stripped . | . . . . . . Power Chain Reactions . | . . . . . . Alert | -11 -10 -10 -10 -9 -8 ------- Run | Yrd Mat Min Exi Min Mat Peak Influence 279 | . 279 94 . . 131 Initial 30 | . . 30 . . . Average 64 | . 117 37 . . 83 Maximum Alert Level 1 | . 1 . . . . Low Security (%) 95 | 100 84 100 . 100 100 Level 1 4 | . 15 . . . . Level 2 . | . . . . . . Level 3 . | . . . . . . Level 4 . | . . . . . . Level 5 . | . . . . . . High Security . | . . . . . . Max Security . | . . . . . . Squads Dispatched 4 | . 3 . . . 1 Investigation 1 | . 1 . . . . Extermination . | . . . . . . Reinforcement 3 | . 2 . . . 1 Assault . | . . . . . . Garrison . | . . . . . . Intercept . | . . . . . . Searches Triggered . | . . . . . . Construction Impeded . | . . . . . . Haulers Reinforced . | . . . . . . Active Scanning Responses . | . . . . . . Cargo Convoy Interrupts . | . . . . . . Stealth | -11 -10 -10 -10 -9 -8 --------- Run | Yrd Mat Min Exi Min Mat Distress Signals 2 | . 2 . . . . Communications Jammed . | . . . . . . Distress Signals . | . . . . . . Times Spotted 23 | . 15 4 . . 4 Peak Tracking Total 5 | . 5 2 . . 2 Tactical Retreats . | . . . . . . Traps | -11 -10 -10 -10 -9 -8 ------- Run | Yrd Mat Min Exi Min Mat Traps Triggered . | . . . . . . Indirectly . | . . . . . . Trap Hack Attempts . | . . . . . . Triggered . | . . . . . . Disarmed . | . . . . . . Reprogrammed . | . . . . . . Reused . | . . . . . . Traps Extracted . | . . . . . . Installed . | . . . . . . Triggered . | . . . . . . Objects Rigged 2 | . 2 . . . . Machines | -11 -10 -10 -10 -9 -8 ---------- Run | Yrd Mat Min Exi Min Mat Machines Disabled 3 | . 3 . . . . Max in Single Turn 3 | . 3 . . . . Machines Repaired . | . . . . . . Machines Dismantled . | . . . . . . Machines Sabotaged . | . . . . . . Overloaded Fab Kills . | . . . . . . Hacking | -11 -10 -10 -10 -9 -8 --------- Run | Yrd Mat Min Exi Min Mat Machines Accessed 11 | . 5 1 5 . . Terminals 4 | . 4 . . . . Fabricators . | . . . . . . Repair Stations . | . . . . . . Recycling Units 1 | . 1 . . . . Scanalyzers . | . . . . . . Garrison Access . | . . . . . . Total Hacks 63 | . 12 1 50 . . Successful 56 | . 5 1 50 . . Failed 7 | . 7 . . . . Catastrophic 1 | . 1 . . . . Database Lockouts . | . . . . . . Manual 13 | . 8 . 4 . 1 Terminals 9 | . 9 . . . . Fabricators . | . . . . . . Repair Stations . | . . . . . . Recycling Units 3 | . 3 . . . . Scanalyzers . | . . . . . . Garrison Access . | . . . . . . Terminal Hacks 53 | . 2 1 50 . . Record 49 | . . . 49 . . Prototype ID Bank 1 | . 1 . . . . Open Door 1 | . . 1 . . . Alert Level 1 | . 1 . . . . Derelict Proto ID Bank 1 | . . . 1 . . Fabricator Hacks . | . . . . . . Repair Station Hacks . | . . . . . . Recycling Unit Hacks 1 | . 1 . . . . Report Inventory 1 | . 1 . . . . Scanalyzer . | . . . . . . Garrison Access Hacks . | . . . . . . Unauthorized Hacks 2 | . 2 . . . . Terminals 2 | . 2 . . . . Detonate 2 | . 2 . . . . Fabricators . | . . . . . . Repair Stations . | . . . . . . Recycling Units . | . . . . . . Scanalyzers . | . . . . . . Garrison Access . | . . . . . . Data Cores Recovered . | . . . . . . Used . | . . . . . . Hacking Detections 5 | . 4 . . . 1 Full Trace Events 2 | . 2 . . . . Feedback Events . | . . . . . . Feedback Blocked . | . . . . . . Robot Schematics Acquired . | . . . . . . Robots Built . | . . . . . . Authchips . | . . . . . . Time . | . . . . . . Total Robot Build Rating . | . . . . . . Part Schematics Acquired . | . . . . . . Parts Built . | . . . . . . Authchips . | . . . . . . Time . | . . . . . . Total Part Build Rating . | . . . . . . Parts Repaired . | . . . . . . Time . | . . . . . . Parts Recycled . | . . . . . . Recycled Matter . | . . . . . . Retrieved Matter . | . . . . . . Retrieved Components . | . . . . . . Parts Scanalyzed . | . . . . . . Part Schematics Acquired . | . . . . . . Parts Damaged . | . . . . . . Bothacking | -11 -10 -10 -10 -9 -8 ------------ Run | Yrd Mat Min Exi Min Mat Used RIF Installer . | . . . . . . Robots Hacked . | . . . . . . Non-combat . | . . . . . . Combat . | . . . . . . Robot Hacks Applied . | . . . . . . Relay Couplers Released . | . . . . . . Fabnet Peak Effective % . | . . . . . . Robots Rewired . | . . . . . . Allies Hacked . | . . . . . . Hacks Repelled . | . . . . . . Allies | -11 -10 -10 -10 -9 -8 -------- Run | Yrd Mat Min Exi Min Mat Total Allies . | . . . . . . Largest Group . | . . . . . . Highest-Rated Group . | . . . . . . Highest-Rated Ally . | . . . . . . Total Orders . | . . . . . . Ally Attacks . | . . . . . . Total Damage . | . . . . . . Kills . | . . . . . . Allies Corrupted . | . . . . . . Allies Melted . | . . . . . . Intel | -11 -10 -10 -10 -9 -8 ------- Run | Yrd Mat Min Exi Min Mat Robot Analysis Total . | . . . . . . Derelict Logs Recovered 1 | . . 1 . . . Drone Launches . | . . . . . . Drone Recoveries . | . . . . . . Exploration | -11 -10 -10 -10 -9 -8 ------------- Run | Yrd Mat Min Exi Min Mat Turns Passed 2502 | 55 426 772 1009 23 217 Spaces Moved 1280 | 40 231 386 528 10 85 Core 10 | 10 . . . . . Treads . | . . . . . . Legs 1270 | 30 231 386 528 10 85 Wheels . | . . . . . . Hover . | . . . . . . Flight . | . . . . . . Fastest Speed 50 | 50 120 190 190 190 190 Average Speed 180 | 102 149 190 190 190 191 Slowest Speed 330 | 120 190 190 190 190 330 Overloaded Moves . | . . . . . . Propulsion Burnouts . | . . . . . . Robots Hopped . | . . . . . . Cave-ins Triggered . | . . . . . . Exploration Rate (%) 38 | 3 32 77 93 12 12 Regions Visited 5 Branch Regions 3 Pre-discovered Areas 2 | . . 1 1 . . Known Exits Taken 4 | . 1 1 1 1 . Unknown Exits Taken 1 | 1 . . . . . Scrap Searched . | . . . . . . Spaces Dug . | . . . . . . Terrain Destroyed 55 | . 10 9 . . 36 Melee . | . . . . . . Projectile . | . . . . . . AOE 55 | . 10 9 . . 36 Terrain Rammed . | . . . . . . Walls Destroyed . | . . . . . . Machines Disabled . | . . . . . . Actions | -11 -10 -10 -10 -9 -8 --------- Run | Yrd Mat Min Exi Min Mat Total 1428 | 54 294 411 535 13 121 Wait 44 | 1 21 5 6 2 9 Move 1275 | 39 230 385 527 9 85 Hop . | . . . . . . Pick Up 22 | 8 10 2 1 . 1 Fast Attach 1 | . . . . . 1 Attach 14 | 6 4 . . . 4 Detach 1 | . 1 . . . . Swap 6 | . 2 1 . . 3 Drop 11 | . 5 3 1 . 2 Fire 51 | . 21 14 . . 16 Melee . | . . . . . . Ram . | . . . . . . Kick 3 | . . 1 . 2 . Crush . | . . . . . . Escape Stasis . | . . . . . . Rewire . | . . . . . . Trap . | . . . . . . Miscellaneous . | . . . . . . Route ------- -11/Scrapyard -10/Materials (discovered 2 exits: *Mat / *Min) -10/Mines (discovered 2 exits: *Mat / *Exi) -10/Exiles (discovered 2 exits: *Min x2) -9/Mines -8/Materials History --------- Turn | Location | Event 17 | -11/Scrapyard | Discovered new exit (range 14) 56 | -11/Scrapyard | Entered Materials 166 | -10/Materials | Discovered new exit (range 9) 190 | -10/Materials | Discovered new exit (range 15) 308 | -10/Materials | Build established: Mutant 479 | -10/Materials | Identified exit to Mines 482 | -10/Materials | Entered Mines 496 | -10/Mines | Met a Derelict bent on vengeance 913 | -10/Mines | Discovered new exit (range 15) 939 | -10/Mines | Identified exit to Materials 1061 | -10/Mines | Learned location of Storage (-8) 1078 | -10/Mines | Deemed a non-threat by the Exiles lab entrance 1078 | -10/Mines | Discovered new exit (range 5) 1084 | -10/Mines | Identified exit to Exiles 1163 | -10/Mines | Found the Drone Emporium 1175 | -10/Mines | Found Prototype Device 1254 | -10/Mines | Entered Exiles 1302 | -10/Exiles | Met 8R-AWN 1332 | -10/Exiles | Met EX-HEX 1406 | -10/Exiles | Met EX-DEC 1469 | -10/Exiles | Visited The Gauntlet 1709 | -10/Exiles | Learned location of Zion (-6) 1792 | -10/Exiles | Discovered new exit (range 10) 1810 | -10/Exiles | Identified exit to Mines 1922 | -10/Exiles | Met EX-BIN 1952 | -10/Exiles | Aligned with FarCom system 1954 | -10/Exiles | Given EX-Vault access code 2058 | -10/Exiles | Opened EX-Vault 2070 | -10/Exiles | Found Field Lobotomy Kit 2111 | -10/Exiles | Warned to stay clear of 0b10 Research branches 2237 | -10/Exiles | Discovered exit to Mines (range 14) 2263 | -10/Exiles | Left Exiles lab with Field Lobotomy Kit 2263 | -10/Exiles | Entered Mines 2263 | -9/Mines | Discovered new exit (range 10) 2264 | -9/Mines | Assembled infested the area 2269 | -9/Mines | Assisted by a Guerilla fighting off Assembled 2281 | -9/Mines | Identified exit to Materials 2286 | -9/Mines | Entered Materials 2286 | -8/Materials | Evolved 4 slots: Utility x4 2295 | -8/Materials | Identified Sensor Drone Bay 2503 | -8/Materials | Self-destructed Last Messages --------------- 02362_ U-05 Engineer lays Concrete. 02367_ U-05 Engineer builds a Wall. 02368_ U-05 Engineer lays Concrete. 02369_ U-05 Engineer builds a Wall. 02372_ U-05 Engineer lays Concrete. 02376_ U-05 Engineer builds a Wall. 02380_ U-05 Engineer lays Concrete. 02384_ U-05 Engineer builds a Wall. 02405_ Dropped Aluminum Leg. 02409_ Acquired Carbon-fiber Leg. 02418_ Connecting with Terminal... 02446_ Acquired 3 matter. 02459_ U-05 Engineer works on Purification Channel. 02461_ A-02 Transporter destroyed. 02462_ U-05 Engineer works on Purification Channel. 02470_ Electrolysis Chamber comes online. 02486_ O-16 Technician destroyed. 02492_ R-06 Scavenger collects Wheel. 02494_ Acquired 8 matter. 02497_ K-01 Serf collects debris. Map ----- +----------------------------------------------------+ | ?????????????????????????????????????????????????? | | ?????????????????????????????????????????????????? | | ?????????????????????????????????????????????????? | | ?????????????????????????????????????????????????? | | ?????????????????????????????????????????????????? | | ?????????????????????????????????????????????????? | | ?????????????????????????????????????????????????? | | ?????????????????????????????????????????????????? | | ?????????????????????????????????????????????????? | | ?????????????????????????????????????????????????? | | ??????????????????????? ???????????????????????? | | ??????????????????????# ???????????????????????? | | ?????????????????????## #??? ???????????????? | | ?????????????????????# ??? ???????????????? | | ?????????????????????# ??? #???????????????? | | ?????????????????????? kY ??# #???????????????? | | ?????????????????????? ??# #???????????????? | | ?????????????????????? ??# #???????????????? | | ??????????????????????# #??# #???????????????? | | ??????????????????????# #??# #???????????????? | | ??????????????????????# #??# #???????????????? | | ??????????????????????# #??# #???????????????? | | ??????????????????????# #??# #???????????????? | | ??????????????????????# #??# #???????????????? | | ????????########??????# #### #?#####?????????? | | ????????# !#??????# @k #? ?????????? | | ????????#""" #??????# #=""" ??????????? | | ????????#""" #??????# u # ""????????????? | | #########""" !#??????######## + ??????????????? | | """"" # ???########????# #???????????????? | | ""T"" # ?### # ####?# #???????????????? | | #+##+################# #####???????????? | | # %] *%=% #???????????? | | + = ![! ! #???????????? | | =""" # [%[!%[= #???????????? | | """ ####+###########+########+####???????????? | | """ #?? ?## %[=![[[ # #???????????? | | ] #?? ?## """ ""[ T # """" #???????????? | | #########? "" ## """"" # """" #???????????? | | ?????????? """ ?# """ # """" #???????????? | | ?????????= S" ## # #???????????? | | ????????? ## # #???????????? | | ?????????######?#####################????????????? | | | | | | | | | | | | | | | +----------------------------------------------------+ Best States ------------- Heat Dissipation 31 Energy Generation 12 Energy Capacity 265 Matter Stores 300 Matter Capacity 300 Sight Range 16 Terrain Scan Density 10 Propulsion Shielding 33 Evasion (%) 55 Targeting Accuracy 12 Item Schematics ----------------- None Robot Schematics ------------------ None Fabricated ------------ Nothing Alien Tech Used ----------------- None Achievements -------------- None Challenges ------------ None Game ------ Seed ModifiedTacticalHumpback Manual? 0 Play Time 00:37:29 Cumulative 13.9 hours Start 2025.03.19 @ 22:06:33 End 2025.03.19 @ 22:50:36 Sessions 1 Manual Loads 0 Difficulty Rogue Special Mode None Game No. 17 Rogue 16 Adventurer 1 Explorer 0 Win Type - Total 0 Types 0/0/0/0/0/0/0/0/0 Lore% 14 Gallery% 18 Achievement% 18 Wizard Run 0 Options --------- Layout 0 ASCII 0 Keyboard 0 Movement Mouse Keybinds 0 Fullscreen 1 Font 16/SmallcapsGlow Map View 75x55 Zoom Use 0% Tactical HUD 1 Map Filters NONE Filters NONE Steam 1 RUN: 1523258b-41fc-472a-a136-78ffd4fce62e